fUSD/lending_fUSD_20240217
["ID","MTS","AMOUNT","RATE_DAILY","PERIOD"]
[314324891,1708183837892,-250.0,0.00030199,2]
[314324892,1708183837901,-534.58,0.00030292,2]
[314324893,1708183837911,-500.0,0.00030321,2]
[314324894,1708183837920,-500.0,0.0003065,2]
[314324895,1708183837929,-255.02,0.00030679,2]
[314324896,1708183837938,-233.17,0.00030781,2]
[314324897,1708183837948,-200.0,0.00030816,2]
[314324898,1708183837957,-500.0,0.00030899,2]
[314324899,1708183837966,-700.0,0.00031,3]
[314324900,1708183837976,-166.41,0.00031585,2]
[314324901,1708183837985,-336.64,0.00031699,2]
[314324902,1708183837995,-218.63280078,0.00031745,2]
[314324903,1708183838004,-300.0,0.00031755,2]
[314324904,1708183838013,-300.0,0.00031799,2]
[314324905,1708183838022,-282.13,0.00032168,2]
[314324906,1708183838031,-255.02,0.00032323,2]
[314324908,1708183838041,-213.9,0.00032637,2]
[314324910,1708183838050,-213.9,0.00032809,2]
[314324912,1708183838059,-4094.0,0.000329,2]
[314324913,1708183838068,-213.9,0.00032981,2]
[314324914,1708183838077,-750.0,0.00033,3]
[314324915,1708183838086,-155.51,0.0003308,2]
[314324916,1708183838095,-300.0,0.00033124,2]
[314324917,1708183838104,-213.9,0.00033153,2]
[314324918,1708183838113,-282.13,0.00033306,2]
[314324919,1708183838122,-166.41,0.00033323,2]
[314324920,1708183838131,-213.9,0.00033324,2]
[314324921,1708183838140,-174.43,0.00033335,2]
[314324922,1708183838150,-213.9,0.00033496,2]
[314324923,1708183838158,-213.9,0.00033668,2]
[314324924,1708183838168,-397.03977901,0.00033713,6]
[314324925,1708183838177,-155.51,0.00033832,2]
[314324926,1708183838187,-213.9,0.0003384,2]
[314324927,1708183838196,-336.64,0.00033963,2]
[314324928,1708183838205,-255.02,0.00033967,2]
[314324929,1708183838214,-213.9,0.00034012,2]
[314324930,1708183838223,-213.9,0.00034183,2]
[314324931,1708183838236,-4094.76563956,0.000342,2]
[314324932,1708183838246,-213.9,0.00034355,2]
[314324933,1708183838255,-282.13,0.00034444,2]
[314324934,1708183838264,-1180.2,0.00034521,2]
[314324935,1708183838454,-213.9,0.00034527,2]
[314324936,1708183838465,-155.51,0.00034584,2]
[314324937,1708183838478,-213.9,0.00034699,2]
[314324938,1708183838490,-213.9,0.0003487,2]
[314324939,1708183838500,-153.11126037,0.000349,2]
[314324940,1708183838512,-520.44490277,0.000349,2]
[314324941,1708183838522,-520.44490275,0.000349,2]
[314324942,1708183838532,-308.33648603,0.00034928,30]
[314324943,1708183838542,-300.0,0.00034999,2]
[314324944,1708183838551,-32874.0,0.00035,14]
[314324945,1708183838561,-800.0,0.00035,3]
[314324946,1708183838570,-213.9,0.00035042,2]
[314324947,1708183838580,-166.41,0.0003506,2]
[314324948,1708183838589,-213.9,0.00035214,2]
[314324949,1708183838598,-155.51,0.00035336,2]
[314324950,1708183838608,-213.9,0.00035386,2]
[314324951,1708183838617,-213.9,0.00035558,2]
[314324952,1708183838626,-282.13,0.00035581,2]
[314324953,1708183838644,-255.02,0.0003561,2]
[314324954,1708183838656,-157.05791938,0.00035719,2]
[314324955,1708183838666,-177.43,0.00035719,2]
[314324956,1708183838676,-213.9,0.00035729,2]
[314324957,1708183838685,-1180.2,0.00035798,2]
[314324958,1708183838695,-213.9,0.00035901,2]
[314324959,1708183838705,-1346.7848607,0.00036,3]
[314324960,1708183838714,-155.51,0.00036088,2]
[314324961,1708183838724,-520.44490275,0.0003615,2]
[314324962,1708183838740,-153.11126024,0.00036164,2]
[314324963,1708183838750,-336.64,0.00036227,2]
[314324964,1708183838760,-177.43,0.00036267,2]
[314324965,1708183838769,-182.25820803,0.00036289,10]
[314324966,1708183838778,-300.0,0.00036299,2]
[314324967,1708183838788,-174.19,0.00036383,120]
[314324968,1708183838798,-55434.71408609,0.00036389,2]
[314324969,1708183838807,-55434.71408607,0.00036389,2]
[314324970,1708183838817,-303.0645485,0.00036697,2]
[314324971,1708183838826,-388.1738938,0.00036698,9]
[314324972,1708183838836,-55434.71408607,0.00036719,2]
[314324973,1708183838845,-282.13,0.00036719,2]
[314324974,1708183838855,-166.41,0.00036798,2]
[314324975,1708183838864,-177.43,0.00036815,2]
[314324976,1708183838874,-155.51,0.00036839,2]
[314324977,1708183838884,-850.0,0.00037,3]
[314324978,1708183838893,-1000.0,0.00037034,2]
[314324979,1708183838903,-1180.2,0.00037075,2]
[314324980,1708183838912,-255.02,0.00037254,2]
[314324981,1708183838922,-177.43,0.00037363,2]
[314324982,1708183838931,-153.11126024,0.00037428,2]
[314324983,1708183838940,-2033.0,0.000375,3]
[314324984,1708183838950,-397.03977901,0.00037526,8]
[314324985,1708183838960,-155.51,0.00037591,2]
[314324986,1708183838969,-2944.0,0.000376,3]
[314324987,1708183838983,-282.13,0.00037857,2]
[314324988,1708183838992,-500.0,0.00037899,2]
[314324989,1708183839001,-500.0,0.00037899,2]
[314324990,1708183839011,-500.0,0.00037899,2]
[314324991,1708183839020,-500.0,0.00037899,2]
[314324992,1708183839030,-500.0,0.00037899,2]
[314324993,1708183839039,-500.0,0.00037899,2]
[314324994,1708183839050,-500.0,0.00037899,2]
[314324995,1708183839059,-500.0,0.00037899,2]
[314324996,1708183839069,-500.0,0.00037899,2]
[314324997,1708183839078,-500.0,0.00037899,2]
[314324998,1708183839088,-500.0,0.00037899,2]
[314324999,1708183839097,-500.0,0.00037899,2]
[314325000,1708183839106,-500.0,0.00037899,2]
[314325001,1708183839115,-500.0,0.00037899,2]
[314325002,1708183839124,-500.0,0.00037899,2]
[314325003,1708183839133,-500.0,0.00037899,2]
[314325004,1708183839143,-177.43,0.00037911,2]
[314325005,1708183839152,-155.51,0.00038343,2]
[314325006,1708183839161,-1180.2,0.00038352,2]
[314325007,1708183839171,-159.71,0.00038356,15]
[314325008,1708183839180,-155.92,0.00038356,2]
[314325009,1708183839190,-181.43827529,0.00038459,2]
[314325010,1708183839200,-336.64,0.00038491,2]
[314325011,1708183839210,-153.11126024,0.00038692,2]
[314325012,1708183839220,-388.17389378,0.00038707,12]
[314325013,1708183839231,-199.91,0.0003899,10]
[314325014,1708183839241,-282.13,0.00038995,2]
[314325015,1708183839251,-150.0,0.00038999,2]
[314325016,1708183839260,-32665.2836308,0.00039,40]
[314325017,1708183839270,-900.0,0.00039,3]
[314325018,1708183839280,-155.51,0.00039095,2]
[314325019,1708183839289,-520.44490275,0.00039275,2]
[314325020,1708183839299,-1180.2,0.0003963,2]
[314325021,1708183839309,-155.51,0.00039847,2]
[314325022,1708183839319,-153.11126024,0.00039956,6]
[314325023,1708183839329,-255.0,0.0004,12]
[314325024,1708183839338,-564.01828774,0.0004,4]
[314325025,1708183839348,-255.0,0.0004,12]
[314325026,1708183839357,-255.0,0.0004,12]
[314325027,1708183839367,-55434.71408607,0.00040128,2]
[314325028,1708183839376,-285.60822388,0.00040201,12]
[314325029,1708183839390,-3558.35,0.00040334,2]
[314325030,1708183839399,-155.51,0.00040599,2]
[314325031,1708183839409,-388.17389378,0.00040717,14]
[314325032,1708183839418,-336.64,0.00040755,2]
[314325033,1708183839430,-175.87,0.000408,2]
[314325034,1708183839440,-950.0,0.00041,3]
[314325035,1708183839449,-750.0,0.00041095,2]
[314325036,1708183839459,-84701.1334106,0.00041155,7]
[314325038,1708183839469,-15814.35571348,0.00041167,120]
[314325040,1708183839480,-637.97003882,0.00041167,2]
[314325041,1708183839489,-153.11126024,0.0004122,11]
[314325042,1708183839499,-397.03977901,0.00041339,10]
[314325043,1708183839509,-155.51,0.0004135,2]
[314325044,1708183839518,-1000.0,0.00041663,2]
[314325045,1708183839527,-155.51,0.00042102,2]
[314325046,1708183839536,-520.44490275,0.000424,5]
[314325047,1708183839545,-174.19,0.00042447,120]
[314325048,1708183839554,-500.0,0.00042465,3]
[314325049,1708183839564,-153.11126024,0.00042484,16]
[314325050,1708183839574,-154.26,0.000425,4]
[314325051,1708183839583,-460.22,0.000425,4]
[314325052,1708183839593,-460.22,0.000425,4]
[314325053,1708183839602,-460.22,0.000425,4]
[314325054,1708183839611,-460.22,0.000425,4]
[314325055,1708183839620,-460.22,0.000425,4]
[314325056,1708183839630,-460.22,0.000425,4]
[314325057,1708183839639,-460.22,0.000425,4]
[314325058,1708183839648,-460.22,0.000425,4]
[314325059,1708183839657,-460.22,0.000425,4]
[314325060,1708183839666,-460.22,0.000425,4]
[314325061,1708183839676,-460.22,0.000425,4]
[314325062,1708183839685,-460.22,0.000425,4]
[314325063,1708183839694,-460.22,0.000425,4]
[314325064,1708183839703,-460.22,0.000425,4]
[314325065,1708183839713,-460.22,0.000425,4]
[314325066,1708183839722,-460.22,0.000425,4]
[314325067,1708183839733,-460.22,0.000425,4]
[314325068,1708183839742,-460.22,0.000425,4]
[314325069,1708183839752,-460.22,0.000425,4]
[314325070,1708183839761,-460.22,0.000425,4]
[314325071,1708183839771,-388.17389378,0.00042726,17]
[314325072,1708183839780,-155.51,0.00042854,2]
[314325073,1708183839789,-1000.0,0.00043,3]
[314325074,1708183839799,-336.64,0.00043019,2]
[314325075,1708183839808,-7764.99748314,0.00043024,14]
[314325076,1708183839817,-7524.30210228,0.00043024,14]
[314325077,1708183839826,-303.56751879,0.00043051,11]
[314325078,1708183839835,-14191.01392601,0.00043078,14]
[314325079,1708183839845,-159.71,0.00043493,15]
[314325080,1708183839855,-55434.71408607,0.00043538,5]
[314325081,1708183839864,-155.51,0.00043606,2]
[314325082,1708183839874,-153.11126024,0.00043748,20]
[314325083,1708183839886,-155.51,0.00044358,2]
[314325084,1708183839895,-388.17389378,0.00044735,19]
[314325085,1708183839905,-153.11126024,0.00045012,25]
[314325086,1708183839914,-155.51,0.0004511,2]
[314325087,1708183839924,-397.03977901,0.00045151,12]
[314325088,1708183839933,-336.64,0.00045283,2]
[314325089,1708183839943,-520.44490275,0.00045525,5]
[314325090,1708183839952,-154.26,0.000459,5]
[314325091,1708183839962,-154.26,0.000459,5]
[314325092,1708183839971,-460.22,0.000459,5]
[314325093,1708183839983,-460.22,0.000459,5]
[314325094,1708183839993,-460.22,0.000459,5]
[314325095,1708183840003,-460.22,0.000459,5]
[314325096,1708183840014,-460.22,0.000459,5]
[314325097,1708183840025,-460.22,0.000459,5]
[314325098,1708183840035,-460.22,0.000459,5]
[314325099,1708183840045,-460.22,0.000459,5]
[314325100,1708183840056,-460.22,0.000459,5]
[314325101,1708183840065,-460.22,0.000459,5]
[314325102,1708183840075,-460.22,0.000459,5]
[314325103,1708183840084,-460.22,0.000459,5]
[314325104,1708183840093,-460.22,0.000459,5]
[314325105,1708183840103,-460.22,0.000459,5]
[314325106,1708183840112,-460.22,0.000459,5]
[314325107,1708183840121,-460.22,0.000459,5]
[314325108,1708183840131,-460.22,0.000459,5]
[314325109,1708183840141,-460.22,0.000459,5]
[314325110,1708183840150,-460.22,0.000459,5]
[314325111,1708183840159,-460.22,0.000459,5]
[314325112,1708183840168,-153.11126024,0.00046276,30]
[314325113,1708183840178,-1000.0,0.00046292,2]
[314325114,1708183840187,-200.89139386,0.00046482,2]
[314325116,1708183840197,-388.17389378,0.00046744,22]
[314325118,1708183840206,-1387.0,0.00046935,117]
[314325120,1708183840215,-55434.71408607,0.00046947,8]
[314325121,1708183840225,-182.25820803,0.000474,25]
[314325122,1708183840237,-6317.487702,0.000475,2]
[314325123,1708183840246,-153.11126024,0.0004754,35]
[314325124,1708183840255,-336.64,0.00047547,2]
[314325125,1708183840264,-174.19,0.00048511,120]
[314325126,1708183840274,-159.71,0.0004863,120]
[314325127,1708183840283,-520.44490275,0.0004865,5]
[314325128,1708183840293,-388.17389378,0.00048754,25]
[314325129,1708183840303,-153.11126024,0.00048804,40]
[314325130,1708183840312,-397.03977901,0.00048964,14]
[314325131,1708183840321,-2000.0,0.00049,2]
[314325132,1708183840331,-84701.1334106,0.0004919,11]
[314325133,1708183840340,-9476.231553,0.000492,2]
[314325134,1708183840349,-154.26,0.000493,6]
[314325135,1708183840359,-154.26,0.000493,6]
[314325136,1708183840368,-460.22,0.000493,6]
[314325137,1708183840377,-460.22,0.000493,6]
[314325138,1708183840387,-460.22,0.000493,6]
[314325139,1708183840397,-460.22,0.000493,6]
[314325140,1708183840410,-460.22,0.000493,6]
[314325141,1708183840420,-460.22,0.000493,6]
[314325142,1708183840434,-460.22,0.000493,6]
[314325143,1708183840446,-460.22,0.000493,6]
[314325144,1708183840457,-460.22,0.000493,6]
[314325145,1708183840468,-460.22,0.000493,6]
[314325146,1708183840479,-460.22,0.000493,6]
[314325147,1708183840494,-460.22,0.000493,6]
[314325148,1708183840506,-460.22,0.000493,6]
[314325149,1708183840516,-460.22,0.000493,6]
[314325150,1708183840526,-460.22,0.000493,6]
[314325151,1708183840536,-460.22,0.000493,6]
[314325152,1708183840546,-460.22,0.000493,6]
[314325153,1708183840555,-460.22,0.000493,6]
[314325154,1708183840565,-460.22,0.000493,6]
[314325155,1708183840574,-460.22,0.000493,6]
[314325156,1708183840584,-12634.975404,0.0004978,2]
[314325157,1708183840594,-336.64,0.0004981,2]
[314325158,1708183840604,-197.28066176,0.0005,30]
[314325159,1708183840613,-1574.68729121,0.0005,2]
[314325160,1708183840623,-14722.0,0.0005,13]
[314325161,1708183840632,-500.0,0.0005,10]
[314325162,1708183840642,-150.0,0.0005,30]
[314325163,1708183840651,-3052.5,0.00050059,117]
[314325164,1708183840661,-153.11126024,0.00050068,44]
[314325165,1708183840670,-166.45623693,0.00050164,2]
[314325166,1708183840680,-254103.400232,0.00050167,11]
[314325167,1708183840689,-155.34521768,0.0005019,2]
[314325168,1708183840699,-168.13,0.000502,7]
[314325169,1708183840709,-6477.32633616,0.000502,120]
[314325170,1708183840718,-6477.32633606,0.000502,120]
[314325171,1708183840728,-6477.32633606,0.000502,120]
[314325172,1708183840742,-6477.32633606,0.000502,120]
[314325173,1708183840751,-6477.32633606,0.000502,120]
[314325174,1708183840761,-6477.32633606,0.000502,120]
[314325175,1708183840771,-6477.32633606,0.000502,120]
[314325176,1708183840780,-6477.32633606,0.000502,120]
[314325177,1708183840790,-6477.32633606,0.000502,120]
[314325178,1708183840800,-6477.32633606,0.000502,120]
[314325179,1708183840809,-6477.32633606,0.000502,120]
[314325180,1708183840818,-6477.32633606,0.000502,120]
[314325181,1708183840827,-6477.32633606,0.000502,120]
[314325182,1708183840837,-6477.32633606,0.000502,120]
[314325183,1708183840846,-6477.32633606,0.000502,120]
[314325184,1708183840855,-84701.1334106,0.00050347,11]
[314325185,1708183840864,-55434.71408607,0.00050357,11]
[314325186,1708183840873,-25269.950809,0.00050684,30]
[314325187,1708183840882,-388.17389378,0.00050763,27]
[314325188,1708183840891,-156.04201363,0.00050837,60]
[314325189,1708183840900,-1000.0,0.00050921,120]
[314325190,1708183840910,-153.11126024,0.00051332,49]
[314325191,1708183840919,-156.0,0.000515,4]
[314325192,1708183840928,-25269.950809,0.00051506,30]
[314325193,1708183840937,-3558.35,0.00051567,120]
[314325194,1708183840947,-1861.66346308,0.00051568,4]
[314325195,1708183840956,-156.04201363,0.00051671,60]
[314325196,1708183840965,-520.44490275,0.00051775,14]
[314325197,1708183840979,-151.0,0.00051785,2]
[314325198,1708183840992,-2000.0,0.000518,2]
[314325199,1708183841001,-255.0,0.000519,2]
[314325200,1708183841012,-166.13,0.00051984,2]
[314325201,1708183841021,-5000.0,0.00052,90]
[314325202,1708183841031,-161.0,0.00052,5]
[314325203,1708183841040,-160.0,0.00052,120]
[314325204,1708183841050,-4333.466652,0.00052054,30]
[314325205,1708183841059,-2586.227713,0.00052054,120]
[314325206,1708183841069,-3879.341565,0.00052054,120]
[314325207,1708183841078,-5172.45542,0.00052054,120]
[314325208,1708183841087,-6317.487702,0.00052054,30]
[314325209,1708183841096,-336.64,0.00052074,2]
[314325210,1708183841106,-196.96001,0.00052257,30]
[314325211,1708183841115,-291.675146,0.00052257,30]
[314325212,1708183841125,-201.061248,0.00052257,30]
[314325213,1708183841134,-158.166395,0.00052257,30]
[314325214,1708183841144,-289.262273,0.00052257,30]
[314325215,1708183841154,-196.409248,0.00052257,30]
[314325216,1708183841163,-1625.85,0.0005245,2]
[314325217,1708183841172,-161.0,0.000525,6]
[314325218,1708183841182,-194.50379123,0.000525,30]
[314325219,1708183841191,-153.11126024,0.00052596,54]
[314325220,1708183841200,-965.29337015,0.00052627,2]
[314325221,1708183841210,-181.757665,0.00052627,50]
[314325222,1708183841219,-302.0,0.00052655,4]
[314325223,1708183841229,-156.04201363,0.00052723,60]
[314325224,1708183841241,-1165.19365851,0.00052724,2]
[314325225,1708183841251,-1881966.92117967,0.00052726,31]
[314325226,1708183841260,-8124.159487,0.00052727,2]
[314325227,1708183841270,-169402.266821,0.00052727,12]
[314325228,1708183841279,-169.89677668,0.00052737,3]
[314325229,1708183841289,-158.14984648,0.00052737,4]
[314325230,1708183841299,-178.4985765,0.00052737,4]
[314325231,1708183841308,-2260.11183288,0.00052737,7]
[314325232,1708183841318,-3114.98031989,0.00052737,7]
[314325233,1708183841327,-396.66350333,0.00052737,6]
[314325234,1708183841336,-458.42441112,0.00052737,6]
[314325235,1708183841345,-648.48165487,0.00052737,6]
[314325236,1708183841355,-365.97683033,0.00052737,7]
[314325237,1708183841364,-160.0,0.00052767,120]
[314325238,1708183841375,-388.17389378,0.00052772,30]
[314325239,1708183841387,-397.03977901,0.00052777,14]
[314325240,1708183841397,-15793.719255,0.000528,2]
[314325242,1708183841408,-154.26,0.000528,7]
[314325244,1708183841417,-154.26,0.000528,7]
[314325246,1708183841427,-460.22,0.000528,7]
[314325247,1708183841437,-460.22,0.000528,7]
[314325249,1708183841447,-460.22,0.000528,7]
[314325252,1708183841457,-460.22,0.000528,7]
[314325254,1708183841467,-460.22,0.000528,7]
[314325256,1708183841477,-460.22,0.000528,7]
[314325258,1708183841491,-460.22,0.000528,7]
[314325260,1708183841501,-460.22,0.000528,7]
[314325262,1708183841511,-460.22,0.000528,7]
[314325264,1708183841520,-460.22,0.000528,7]
[314325266,1708183841530,-460.22,0.000528,7]
[314325268,1708183841539,-460.22,0.000528,7]
[314325269,1708183841550,-460.22,0.000528,7]
[314325271,1708183841559,-460.22,0.000528,7]
[314325273,1708183841569,-460.22,0.000528,7]
[314325275,1708183841578,-460.22,0.000528,7]
[314325277,1708183841588,-460.22,0.000528,7]
[314325279,1708183841598,-460.22,0.000528,7]
[314325281,1708183841607,-460.22,0.000528,7]
[314325283,1708183841617,-460.22,0.000528,7]
[314325284,1708183841626,-196.96001,0.0005291,30]
[314325285,1708183841635,-201.061248,0.0005291,30]
[314325286,1708183841644,-161.0,0.00053,7]
[314325287,1708183841654,-183.0,0.00053,120]
[314325288,1708183841663,-160.0,0.00053,120]
[314325289,1708183841672,-666.0,0.00053151,4]
[314325290,1708183841682,-3331.2,0.00053182,117]
[314325291,1708183841692,-200.0,0.00053333,33]
[314325292,1708183841701,-10000.00000099,0.000534,120]
[314325293,1708183841710,-161.0,0.000535,8]
[314325294,1708183841719,-160.0,0.00053534,120]
[314325295,1708183841728,-200.0,0.00053535,53]
[314325296,1708183841741,-604.0,0.0005354,7]
[314325297,1708183841751,-196.96001,0.00053563,30]
[314325298,1708183841760,-201.061248,0.00053563,30]
[314325299,1708183841769,-19841.0,0.00053589,120]
[314325300,1708183841779,-7415.0,0.00053589,120]
[314325301,1708183841788,-8162.0,0.00053589,120]
[314325302,1708183841798,-5622.0,0.00053589,120]
[314325303,1708183841806,-4059.0,0.00053589,120]
[314325304,1708183841816,-2926.0,0.00053589,120]
[314325305,1708183841825,-2289.0,0.00053589,120]
[314325306,1708183841834,-14827.18379695,0.00053589,120]
[314325307,1708183842012,-27698.81620305,0.00053589,120]
[314325308,1708183842022,-953.0,0.00053589,120]
[314325309,1708183842031,-1037.0,0.00053589,120]
[314325310,1708183842040,-150.0,0.00053589,2]
[314325311,1708183842049,-1949.0,0.00053589,120]
[314325312,1708183842059,-500.0,0.0005361,5]
[314325313,1708183842068,-181.75766498,0.00053618,52]
[314325314,1708183842078,-500.0,0.00053619,5]
[314325315,1708183842087,-500.0,0.00053628,5]
[314325316,1708183842096,-500.0,0.00053636,5]
[314325317,1708183842105,-500.0,0.00053645,5]
[314325318,1708183842114,-500.0,0.00053654,5]
[314325319,1708183842123,-500.0,0.00053663,5]
[314325320,1708183842132,-500.0,0.00053672,5]
[314325321,1708183842141,-500.0,0.0005368,5]
[314325322,1708183842150,-500.0,0.00053689,5]
[314325323,1708183842159,-500.0,0.00053698,5]
[314325324,1708183842168,-55434.71408607,0.00053766,14]
[314325325,1708183842179,-159.71,0.00053767,120]
[314325326,1708183842188,-15863.16807961,0.00053799,7]
[314325327,1708183842197,-2000.0,0.000538,120]
[314325328,1708183842207,-153.11126024,0.0005386,59]
[314325329,1708183842216,-10000.0,0.000539,120]
[314325330,1708183842225,-167.0,0.00053946,2]
[314325331,1708183842236,-12826.2,0.00054,90]
[314325332,1708183842414,-161.0,0.00054,9]
[314325333,1708183842425,-200.0,0.00054157,30]
[314325335,1708183842434,-200.0,0.00054157,30]
[314325336,1708183842443,-200.0,0.00054157,30]
[314325337,1708183842453,-196.96001,0.00054216,30]
[314325338,1708183842462,-201.061248,0.00054216,30]
[314325339,1708183842472,-160.0,0.00054268,10]
[314325340,1708183842482,-363.01164153,0.00054283,4]
[314325341,1708183842493,-160.0,0.00054301,120]
[314325342,1708183842503,-200.0,0.00054321,100]
[314325343,1708183842512,-336.64,0.00054338,2]
[314325344,1708183842521,-25000.0,0.000544,120]
[314325345,1708183842530,-800.0,0.00054402,30]
[314325346,1708183842540,-345796.48697638,0.00054492,120]
[314325347,1708183842549,-161.0,0.000545,10]
[314325348,1708183842558,-2000.0,0.000545,2]
[314325349,1708183842567,-22111.206957,0.000545,2]
[314325350,1708183842576,-174.19,0.00054575,120]
[314325351,1708183842586,-410.36,0.000546,7]
[314325352,1708183842595,-181.75766498,0.00054609,53]
[314325353,1708183842605,-1404.79498006,0.00054668,33]
[314325354,1708183842614,-200.0,0.00054687,64]
[314325355,1708183842624,-5000.0,0.00054694,7]
[314325356,1708183842633,-150.0,0.00054767,7]
[314325357,1708183842642,-388.17389378,0.00054781,32]
[314325358,1708183842651,-1593.45591278,0.00054792,2]
[314325359,1708183842660,-179.41908435,0.00054792,120]
[314325360,1708183842669,-8203.55505394,0.00054794,20]
[314325361,1708183842678,-515.96421052,0.00054794,120]
[314325362,1708183842688,-500.0,0.00054794,120]
[314325363,1708183842696,-506.19113417,0.00054794,120]
[314325364,1708183842706,-518.56475621,0.00054794,120]
[314325365,1708183842714,-500.0,0.00054794,120]
[314325366,1708183842724,-500.0,0.00054794,120]
[314325367,1708183842734,-510.88315316,0.00054794,120]
[314325368,1708183842743,-515.52513611,0.00054794,120]
[314325369,1708183842752,-516.70345284,0.00054794,120]
[314325370,1708183842762,-507.44322077,0.00054794,120]
[314325371,1708183842771,-536.80703303,0.00054794,120]
[314325372,1708183842780,-561.12639382,0.00054794,120]
[314325373,1708183842790,-500.0,0.00054794,120]
[314325374,1708183842799,-500.0,0.00054794,120]
[314325375,1708183842809,-500.0,0.00054794,120]
[314325376,1708183842818,-500.0,0.00054794,120]
[314325377,1708183842828,-3158.743851,0.00054794,30]
[314325378,1708183842837,-521.47193829,0.00054794,120]
[314325379,1708183842846,-500.0,0.00054794,120]
[314325380,1708183842856,-528.82749746,0.00054794,120]
[314325381,1708183842865,-500.0,0.00054794,120]
[314325382,1708183842874,-531.82736055,0.00054794,120]
[314325383,1708183842883,-527.28883191,0.00054794,120]
[314325384,1708183842893,-396.06238765,0.00054794,30]
[314325385,1708183842903,-514.65471038,0.00054794,120]
[314325386,1708183842912,-504.32816693,0.00054794,120]
[314325387,1708183842922,-525.02647565,0.00054794,120]
[314325388,1708183842931,-523.81145639,0.00054794,120]
[314325389,1708183842941,-542.03465063,0.00054794,120]
[314325390,1708183842950,-539.34467836,0.00054794,120]
[314325391,1708183842960,-532.84280241,0.00054794,120]
[314325392,1708183842968,-525.21521394,0.00054794,120]
[314325393,1708183842978,-518.77967325,0.00054794,120]
[314325394,1708183842990,-500.0,0.00054794,120]
[314325395,1708183842999,-816.67489785,0.00054794,2]
[314325396,1708183843009,-500.0,0.00054794,120]
[314325397,1708183843018,-500.0,0.00054794,120]
[314325398,1708183843027,-508.04047026,0.00054794,120]
[314325399,1708183843036,-488.70689803,0.00054794,120]
[314325400,1708183843045,-521.90909025,0.00054794,120]
[314325401,1708183843054,-500.0,0.00054794,120]
[314325402,1708183843063,-514.70701701,0.00054794,120]
[314325404,1708183843072,-535.76173221,0.00054794,120]
[314325406,1708183843082,-505.43061333,0.00054794,7]
[314325407,1708183843091,-538.50924091,0.00054794,120]
[314325408,1708183843100,-512.89141687,0.00054794,120]
[314325409,1708183843110,-514.16443695,0.00054794,120]
[314325410,1708183843119,-500.0,0.00054794,120]
[314325411,1708183843128,-500.0,0.00054794,120]
[314325412,1708183843137,-527.66313932,0.00054794,120]
[314325413,1708183843146,-521.57539472,0.00054794,120]
[314325414,1708183843155,-508.5369053,0.00054794,120]
[314325415,1708183843164,-515.86832877,0.00054794,120]
[314325416,1708183843173,-522.20336844,0.00054794,120]
[314325417,1708183843182,-500.0,0.00054794,120]
[314325418,1708183843191,-500.0,0.00054794,120]
[314325419,1708183843201,-562.60528418,0.00054794,120]
[314325420,1708183843210,-523.18268215,0.00054794,120]
[314325421,1708183843219,-480.87533695,0.00054794,120]
[314325422,1708183843229,-500.0,0.00054794,120]